[Event "Early-Titled-Tuesday-Blitz-June-18-2024"]
[Site "Chess.com"]
[Date "2024.06.18"]
[Round "7"]
[White "crazy_but_lazy"]
[Black "Sanan_Sjugirov"]
[Result "0-1"]
[WhiteElo "2668"]
[BlackElo "2942"]
[TimeControl "180+1"]
[EndTime "9:19:20 PDT"]
[Termination "Sanan_Sjugirov won by resignation"]

1. Nf3 {[%clk 0:03:00.9]} 1... Nf6 {[%clk 0:02:59.9]} 2. c4 {[%clk 0:02:59.5]}
2... b6 {[%clk 0:03:00.1]} 3. e3 {[%clk 0:02:58.5]} 3... Bb7 {[%clk 0:03:00.6]}
4. b3 {[%clk 0:02:58.9]} 4... g6 {[%clk 0:03:01.4]} 5. Bb2 {[%clk 0:02:59.5]}
5... Bg7 {[%clk 0:03:02.3]} 6. Be2 {[%clk 0:03:00.2]} 6... O-O {[%clk
0:03:02.9]} 7. Nc3 {[%clk 0:03:00.8]} 7... d6 {[%clk 0:03:03.5]} 8. O-O {[%clk
0:03:00.6]} 8... Nbd7 {[%clk 0:03:04.2]} 9. d4 {[%clk 0:02:59.1]} 9... e5 {[%clk
0:03:04.9]} 10. Rc1 {[%clk 0:02:55.7]} 10... Re8 {[%clk 0:03:05.4]} 11. dxe5
{[%clk 0:02:52.4]} 11... Nxe5 {[%clk 0:03:04.8]} 12. Nxe5 {[%clk 0:02:52.4]}
12... dxe5 {[%clk 0:03:01.8]} 13. Qxd8 {[%clk 0:02:47.5]} 13... Rexd8 {[%clk
0:03:02.7]} 14. Rfd1 {[%clk 0:02:47.9]} 14... a6 {[%clk 0:03:00.8]} 15. Bf3
{[%clk 0:02:43]} 15... e4 {[%clk 0:02:59.7]} 16. Be2 {[%clk 0:02:43.4]} 16...
Nd7 {[%clk 0:02:57.3]} 17. Kf1 {[%clk 0:02:34.1]} 17... Nc5 {[%clk 0:02:57.2]}
18. Rxd8+ {[%clk 0:02:12.2]} 18... Rxd8 {[%clk 0:02:58.1]} 19. Rd1 {[%clk
0:02:12.5]} 19... Rxd1+ {[%clk 0:02:50.8]} 20. Nxd1 {[%clk 0:02:08]} 20... Bxb2
{[%clk 0:02:51.7]} 21. Nxb2 {[%clk 0:02:08.3]} 21... a5 {[%clk 0:02:52.6]} 22.
Ke1 {[%clk 0:02:07.5]} 22... Kg7 {[%clk 0:02:51.5]} 23. Kd2 {[%clk 0:02:07.8]}
23... Kf6 {[%clk 0:02:52.2]} 24. Kc3 {[%clk 0:02:08.2]} 24... Ke5 {[%clk
0:02:52.9]} 25. a3 {[%clk 0:02:08.5]} 25... f5 {[%clk 0:02:49.7]} 26. b4 {[%clk
0:02:08.4]} 26... axb4+ {[%clk 0:02:50.6]} 27. axb4 {[%clk 0:02:09.3]} 27... Ne6
{[%clk 0:02:51.2]} 28. f4+ {[%clk 0:01:23.9]} 28... exf3 {[%clk 0:02:49.6]} 29.
gxf3 {[%clk 0:01:24.8]} 29... f4 {[%clk 0:02:12.7]} 30. Nd3+ {[%clk 0:01:16.5]}
30... Kf5 {[%clk 0:02:13.1]} 31. e4+ {[%clk 0:01:17]} 31... Kg5 {[%clk
0:02:13.5]} 32. c5 {[%clk 0:00:57.8]} 32... Kh4 {[%clk 0:01:41.7]} 33. cxb6
{[%clk 0:00:47.7]} 33... cxb6 {[%clk 0:01:42.6]} 34. Nf2 {[%clk 0:00:48.4]}
34... g5 {[%clk 0:01:34.2]} 35. Bc4 {[%clk 0:00:48.3]} 35... Nd8 {[%clk
0:01:28.7]} 36. Kd4 {[%clk 0:00:46.2]} 36... Nc6+ {[%clk 0:01:28.3]} 37. Kc3
{[%clk 0:00:46.5]} 37... Ne5 {[%clk 0:01:27.3]} 38. Be2 {[%clk 0:00:46.2]} 38...
h5 {[%clk 0:01:24.5]} 39. b5 {[%clk 0:00:33.6]} 39... g4 {[%clk 0:01:15.4]} 40.
Kd4 {[%clk 0:00:34]} 40... g3 {[%clk 0:01:11]} 41. hxg3+ {[%clk 0:00:15.4]}
41... fxg3 {[%clk 0:01:11.9]} 42. Ke3 {[%clk 0:00:10.6]} 42... g2 {[%clk
0:01:11]} 0-1

[Event "Early-Titled-Tuesday-Blitz-June-18-2024"]
[Site "Chess.com"]
[Date "2024.06.18"]
[Round "7"]
[White "annasargsyan_m"]
[Black "BirdMaster3000"]
[Result "0-1"]
[WhiteElo "2614"]
[BlackElo "2773"]
[TimeControl "180+1"]
[EndTime "9:19:24 PDT"]
[Termination "BirdMaster3000 won by resignation"]

1. e4 {[%clk 0:02:58.7]} 1... c5 {[%clk 0:02:59]} 2. Nf3 {[%clk 0:02:57.1]} 2...
e6 {[%clk 0:02:59.4]} 3. d4 {[%clk 0:02:55.3]} 3... cxd4 {[%clk 0:02:57.3]} 4.
Nxd4 {[%clk 0:02:56.2]} 4... Nc6 {[%clk 0:02:57.5]} 5. Nc3 {[%clk 0:02:49]} 5...
Qc7 {[%clk 0:02:57.5]} 6. Be3 {[%clk 0:02:45.4]} 6... a6 {[%clk 0:02:50.3]} 7.
Qf3 {[%clk 0:02:44.4]} 7... Nf6 {[%clk 0:02:47.6]} 8. O-O-O {[%clk 0:02:42]}
8... Ne5 {[%clk 0:02:47.9]} 9. Qg3 {[%clk 0:02:41.6]} 9... b5 {[%clk 0:02:48.5]}
10. f4 {[%clk 0:02:39.4]} 10... Neg4 {[%clk 0:02:48.2]} 11. Bg1 {[%clk 0:02:40]}
11... h5 {[%clk 0:02:38]} 12. h3 {[%clk 0:02:38.9]} 12... b4 {[%clk 0:02:37.3]}
13. Na4 {[%clk 0:02:14.7]} 13... Nxe4 {[%clk 0:02:30.8]} 14. Qf3 {[%clk
0:02:07.9]} 14... Bb7 {[%clk 0:02:30.9]} 15. hxg4 {[%clk 0:01:48.5]} 15... hxg4
{[%clk 0:02:27.6]} 16. Rxh8 {[%clk 0:01:42.6]} 16... gxf3 {[%clk 0:02:26.6]} 17.
gxf3 {[%clk 0:01:43.1]} 17... Qxf4+ {[%clk 0:02:00.5]} 18. Kb1 {[%clk
0:01:38.1]} 18... Nd2+ {[%clk 0:02:00.4]} 19. Ka1 {[%clk 0:01:29.5]} 19... Nxf1
{[%clk 0:02:00.6]} 20. Ne2 {[%clk 0:01:13.6]} 20... Qxf3 {[%clk 0:01:46.1]} 21.
Bc5 {[%clk 0:01:12.9]} 21... O-O-O {[%clk 0:01:45.7]} 22. Bxf8 {[%clk
0:00:47.6]} 22... Qxe2 {[%clk 0:01:37.1]} 23. Rc1 {[%clk 0:00:36.7]} 23... Qb5
{[%clk 0:01:30.4]} 24. b3 {[%clk 0:00:27.7]} 24... Ne3 {[%clk 0:00:46.8]} 25. c3
{[%clk 0:00:25.2]} 25... Be4 {[%clk 0:00:46.6]} 26. cxb4+ {[%clk 0:00:21.5]}
26... Nc2+ {[%clk 0:00:46.3]} 27. Kb2 {[%clk 0:00:19.1]} 27... Qe5+ {[%clk
0:00:45.1]} 28. Nc3 {[%clk 0:00:18.8]} 28... Bg6 {[%clk 0:00:43.7]} 29. a4
{[%clk 0:00:08.1]} 29... d5 {[%clk 0:00:43]} 30. Rxc2 {[%clk 0:00:02.2]} 30...
Bxc2 {[%clk 0:00:42.4]} 31. Kxc2 {[%clk 0:00:03.1]} 31... d4 {[%clk 0:00:42.9]}
0-1

[Event "Early-Titled-Tuesday-Blitz-June-18-2024"]
[Site "Chess.com"]
[Date "2024.06.18"]
[Round "7"]
[White "MKlose11"]
[Black "Rutricks"]
[Result "0-1"]
[WhiteElo "2574"]
[BlackElo "2758"]
[TimeControl "180+1"]
[EndTime "9:19:29 PDT"]
[Termination "Rutricks won by resignation"]

1. e4 {[%clk 0:03:00.9]} 1... g6 {[%clk 0:03:00.9]} 2. d4 {[%clk 0:02:59.6]}
2... Bg7 {[%clk 0:03:01.5]} 3. Be3 {[%clk 0:03:00.1]} 3... c6 {[%clk 0:03:02.1]}
4. Qd2 {[%clk 0:03:00.6]} 4... d5 {[%clk 0:03:02.8]} 5. e5 {[%clk 0:03:00.7]}
5... f6 {[%clk 0:03:03.5]} 6. f4 {[%clk 0:02:58.6]} 6... Nh6 {[%clk 0:03:04]} 7.
h3 {[%clk 0:02:54.7]} 7... Nf5 {[%clk 0:03:04.4]} 8. Bf2 {[%clk 0:02:54.9]} 8...
fxe5 {[%clk 0:03:05.3]} 9. dxe5 {[%clk 0:02:50.6]} 9... O-O {[%clk 0:03:05.7]}
10. Nf3 {[%clk 0:02:50.6]} 10... b6 {[%clk 0:03:04.4]} 11. Nc3 {[%clk
0:02:48.3]} 11... e6 {[%clk 0:03:03.7]} 12. Be2 {[%clk 0:02:43.8]} 12... c5
{[%clk 0:03:04]} 13. O-O {[%clk 0:02:42.3]} 13... Bb7 {[%clk 0:03:04]} 14. Ng5
{[%clk 0:02:39.3]} 14... Qe7 {[%clk 0:03:02.5]} 15. g4 {[%clk 0:02:33.7]} 15...
Nd4 {[%clk 0:02:44.1]} 16. Bxd4 {[%clk 0:02:32.1]} 16... cxd4 {[%clk 0:02:45]}
17. Nb5 {[%clk 0:02:32.6]} 17... h6 {[%clk 0:02:45.3]} 18. Nf3 {[%clk
0:02:31.8]} 18... Ba6 {[%clk 0:02:44.1]} 19. Nfxd4 {[%clk 0:02:24.6]} 19... Bxb5
{[%clk 0:02:44.4]} 20. Bxb5 {[%clk 0:02:24.2]} 20... a6 {[%clk 0:02:40.5]} 21.
Bd3 {[%clk 0:02:24.3]} 21... g5 {[%clk 0:02:38.8]} 22. f5 {[%clk 0:02:18.3]}
22... Qc5 {[%clk 0:02:35.1]} 23. f6 {[%clk 0:01:48.3]} 23... Qxd4+ {[%clk
0:02:24]} 24. Rf2 {[%clk 0:01:47.7]} 24... Nc6 {[%clk 0:01:24.8]} 25. c3 {[%clk
0:01:40.2]} 25... Qxe5 {[%clk 0:01:21.6]} 26. Re1 {[%clk 0:01:40.1]} 26... Qg3+
{[%clk 0:01:11.9]} 27. Rg2 {[%clk 0:01:39.1]} 27... Qd6 {[%clk 0:01:12.4]} 28.
fxg7 {[%clk 0:01:36.7]} 28... Kxg7 {[%clk 0:01:13.3]} 29. Bb1 {[%clk 0:01:34.5]}
29... Rf6 {[%clk 0:01:09.7]} 30. Qd3 {[%clk 0:01:31.8]} 30... Rh8 {[%clk
0:01:10.4]} 31. Rf2 {[%clk 0:01:26.4]} 31... Ne5 {[%clk 0:00:51.3]} 32. Qe2
{[%clk 0:01:17.7]} 32... Nd7 {[%clk 0:00:28.9]} 33. Rxf6 {[%clk 0:01:15]} 33...
Nxf6 {[%clk 0:00:29.8]} 34. Qd3 {[%clk 0:01:15.3]} 34... Kf8 {[%clk 0:00:16.4]}
35. Qg6 {[%clk 0:01:11.8]} 35... Qg3+ {[%clk 0:00:16.4]} 36. Kf1 {[%clk
0:01:09.7]} 36... Qf3+ {[%clk 0:00:16.1]} 37. Kg1 {[%clk 0:01:09.7]} 37... Qg3+
{[%clk 0:00:16.4]} 38. Kf1 {[%clk 0:01:10]} 38... Qxh3+ {[%clk 0:00:17.1]} 39.
Ke2 {[%clk 0:01:04.7]} 39... Qxg4+ {[%clk 0:00:17.3]} 40. Kd2 {[%clk 0:01:05.2]}
40... Qf4+ {[%clk 0:00:17.4]} 41. Kd1 {[%clk 0:01:04.8]} 41... Rg8 {[%clk
0:00:11.4]} 42. Qxh6+ {[%clk 0:01:04.1]} 42... Ke7 {[%clk 0:00:12.1]} 43. Bd3
{[%clk 0:01:00.6]} 43... g4 {[%clk 0:00:12.2]} 44. Rf1 {[%clk 0:00:58.8]} 44...
Qxh6 {[%clk 0:00:12.4]} 0-1

[Event "Early-Titled-Tuesday-Blitz-June-18-2024"]
[Site "Chess.com"]
[Date "2024.06.18"]
[Round "7"]
[White "HouseOfDurin"]
[Black "A4RookA3"]
[Result "0-1"]
[WhiteElo "2298"]
[BlackElo "2435"]
[TimeControl "180+1"]
[EndTime "9:19:30 PDT"]
[Termination "A4RookA3 won by checkmate"]

1. d4 {[%clk 0:03:00.9]} 1... Nf6 {[%clk 0:02:58.6]} 2. Bg5 {[%clk 0:03:01.4]}
2... Ne4 {[%clk 0:02:58.5]} 3. h4 {[%clk 0:03:01.1]} 3... c5 {[%clk 0:02:51.1]}
4. dxc5 {[%clk 0:03:00.2]} 4... Qa5+ {[%clk 0:02:40.8]} 5. Nd2 {[%clk
0:03:00.4]} 5... Nc6 {[%clk 0:02:15.2]} 6. c3 {[%clk 0:02:53.5]} 6... Nxd2
{[%clk 0:02:05.8]} 7. Qxd2 {[%clk 0:02:54.4]} 7... Qxc5 {[%clk 0:02:05.4]} 8. e4
{[%clk 0:02:49.6]} 8... d6 {[%clk 0:01:45.5]} 9. Be3 {[%clk 0:02:49.3]} 9... Qa5
{[%clk 0:01:43.8]} 10. Nf3 {[%clk 0:02:42.3]} 10... Bg4 {[%clk 0:01:40.6]} 11.
Be2 {[%clk 0:02:41.8]} 11... g6 {[%clk 0:01:26.1]} 12. Nd4 {[%clk 0:02:38.2]}
12... Bxe2 {[%clk 0:01:25]} 13. Qxe2 {[%clk 0:02:32.7]} 13... Bg7 {[%clk
0:01:20.2]} 14. O-O {[%clk 0:02:29.8]} 14... O-O {[%clk 0:01:08.2]} 15. g4
{[%clk 0:02:21.5]} 15... h5 {[%clk 0:00:55.2]} 16. gxh5 {[%clk 0:02:18.7]} 16...
Qxh5 {[%clk 0:00:56.1]} 17. Qxh5 {[%clk 0:02:18.1]} 17... gxh5 {[%clk 0:00:57]}
18. f4 {[%clk 0:02:10.9]} 18... Nxd4 {[%clk 0:00:53.6]} 19. Bxd4 {[%clk
0:02:10.3]} 19... Bxd4+ {[%clk 0:00:47]} 20. cxd4 {[%clk 0:02:11.2]} 20... Rfc8
{[%clk 0:00:47]} 21. Rac1 {[%clk 0:02:10.6]} 21... f5 {[%clk 0:00:40.8]} 22. e5
{[%clk 0:02:05.8]} 22... Kf7 {[%clk 0:00:40.7]} 23. Kf2 {[%clk 0:02:04.8]} 23...
Ke6 {[%clk 0:00:39.6]} 24. Ke3 {[%clk 0:01:49.3]} 24... Kd5 {[%clk 0:00:38.5]}
25. Kd3 {[%clk 0:01:44]} 25... e6 {[%clk 0:00:10.9]} 26. exd6 {[%clk 0:01:40.1]}
26... Kxd6 {[%clk 0:00:11.8]} 27. Rfe1 {[%clk 0:01:37.1]} 27... Rg8 {[%clk
0:00:09.8]} 28. Re3 {[%clk 0:01:29.8]} 28... Rg4 {[%clk 0:00:06]} 29. Rce1
{[%clk 0:01:30.4]} 29... Re8 {[%clk 0:00:06.1]} 30. d5 {[%clk 0:01:30.8]} 30...
Kxd5 {[%clk 0:00:05.4]} 31. Re5+ {[%clk 0:01:31]} 31... Kd6 {[%clk 0:00:05.8]}
32. Rxf5 {[%clk 0:01:31.4]} 32... exf5 {[%clk 0:00:04.6]} 33. Rxe8 {[%clk
0:01:32]} 33... Rxf4 {[%clk 0:00:05]} 34. Rf8 {[%clk 0:01:29.7]} 34... Rxh4
{[%clk 0:00:04.7]} 35. Rxf5 {[%clk 0:01:29.4]} 35... Rh2 {[%clk 0:00:05.6]} 36.
b4 {[%clk 0:01:28.1]} 36... a6 {[%clk 0:00:05.2]} 37. a4 {[%clk 0:01:27.5]}
37... Rh4 {[%clk 0:00:03.5]} 38. Kc3 {[%clk 0:01:26.8]} 38... Rh3+ {[%clk
0:00:03.4]} 39. Kc4 {[%clk 0:01:26.6]} 39... h4 {[%clk 0:00:02.4]} 40. Rf6+
{[%clk 0:01:27.1]} 40... Kc7 {[%clk 0:00:02.6]} 41. Rf7+ {[%clk 0:01:27.4]}
41... Kb8 {[%clk 0:00:02.8]} 42. Kc5 {[%clk 0:01:27.9]} 42... Ka7 {[%clk
0:00:01.1]} 43. b5 {[%clk 0:01:27.5]} 43... axb5 {[%clk 0:00:02]} 44. axb5
{[%clk 0:01:27.8]} 44... Rc3+ {[%clk 0:00:01.8]} 45. Kb4 {[%clk 0:01:27.9]}
45... Rg3 {[%clk 0:00:02.3]} 46. Rh7 {[%clk 0:01:28.5]} 46... h3 {[%clk
0:00:02.5]} 47. Ka5 {[%clk 0:01:27.7]} 47... Ra3+ {[%clk 0:00:01]} 48. Kb4
{[%clk 0:01:28.3]} 48... Rg3 {[%clk 0:00:01.9]} 49. Kc5 {[%clk 0:01:28.6]} 49...
Rg5+ {[%clk 0:00:01.4]} 50. Kb4 {[%clk 0:01:28.3]} 50... Kb6 {[%clk 0:00:02.3]}
51. Rh6+ {[%clk 0:01:28]} 51... Kc7 {[%clk 0:00:02.8]} 52. Rxh3 {[%clk
0:01:28.7]} 52... Rg4+ {[%clk 0:00:03.1]} 53. Ka5 {[%clk 0:01:28.5]} 53... b6+
{[%clk 0:00:03.6]} 54. Ka6 {[%clk 0:01:26.8]} 54... Ra4# {[%clk 0:00:04.5]} 0-1

[Event "Early-Titled-Tuesday-Blitz-June-18-2024"]
[Site "Chess.com"]
[Date "2024.06.18"]
[Round "7"]
[White "RamonManon0g"]
[Black "Vesper2018"]
[Result "1-0"]
[WhiteElo "2468"]
[BlackElo "2597"]
[TimeControl "180+1"]
[EndTime "9:19:31 PDT"]
[Termination "RamonManon0g won on time"]

1. e4 {[%clk 0:03:00.9]} 1... c5 {[%clk 0:02:59.8]} 2. Nf3 {[%clk 0:03:00.8]}
2... d6 {[%clk 0:03:00.2]} 3. Bb5+ {[%clk 0:03:00]} 3... Nd7 {[%clk 0:02:58.4]}
4. a4 {[%clk 0:02:59.7]} 4... a6 {[%clk 0:02:54.8]} 5. Be2 {[%clk 0:02:57.3]}
5... Ngf6 {[%clk 0:02:53.9]} 6. Nc3 {[%clk 0:02:57.7]} 6... b6 {[%clk
0:02:53.5]} 7. O-O {[%clk 0:02:57.9]} 7... Bb7 {[%clk 0:02:53.9]} 8. d3 {[%clk
0:02:57.5]} 8... g6 {[%clk 0:02:53.3]} 9. Bg5 {[%clk 0:02:56]} 9... Bg7 {[%clk
0:02:52.9]} 10. Qd2 {[%clk 0:02:56.6]} 10... Ne5 {[%clk 0:02:47]} 11. Nxe5
{[%clk 0:02:56.3]} 11... dxe5 {[%clk 0:02:47]} 12. f4 {[%clk 0:02:52.4]} 12...
h6 {[%clk 0:02:39.8]} 13. Bxf6 {[%clk 0:02:47.2]} 13... Bxf6 {[%clk 0:02:38.9]}
14. f5 {[%clk 0:02:39.6]} 14... Bg5 {[%clk 0:02:28.4]} 15. Qe1 {[%clk
0:02:39.2]} 15... Qd4+ {[%clk 0:02:19.1]} 16. Kh1 {[%clk 0:02:38.9]} 16... O-O-O
{[%clk 0:02:08.1]} 17. fxg6 {[%clk 0:02:35.8]} 17... fxg6 {[%clk 0:02:06.6]} 18.
Bg4+ {[%clk 0:02:35.6]} 18... Kb8 {[%clk 0:02:05.9]} 19. Be6 {[%clk 0:02:35.8]}
19... Rhf8 {[%clk 0:02:03.4]} 20. Qg3 {[%clk 0:02:25.6]} 20... Rf6 {[%clk
0:01:32.7]} 21. Bd5 {[%clk 0:02:22.6]} 21... Bf4 {[%clk 0:01:28.2]} 22. Qh3
{[%clk 0:02:18.3]} 22... Bc8 {[%clk 0:01:25.5]} 23. Qh4 {[%clk 0:02:18.7]} 23...
g5 {[%clk 0:01:20.6]} 24. Qh5 {[%clk 0:02:18.9]} 24... Rdf8 {[%clk 0:01:13.4]}
25. Ne2 {[%clk 0:02:02.7]} 25... Qxb2 {[%clk 0:01:06.3]} 26. c4 {[%clk
0:01:58.7]} 26... Qc2 {[%clk 0:00:38.3]} 27. Nxf4 {[%clk 0:01:54.8]} 27... Rxf4
{[%clk 0:00:27.2]} 28. Rxf4 {[%clk 0:01:54.3]} 28... Rxf4 {[%clk 0:00:26.6]} 29.
Qxh6 {[%clk 0:01:48.6]} 29... e6 {[%clk 0:00:26.6]} 30. Qxg5 {[%clk 0:01:42.2]}
30... Qc3 {[%clk 0:00:25.7]} 31. Rb1 {[%clk 0:01:38.9]} 31... exd5 {[%clk
0:00:25]} 32. Rxb6+ {[%clk 0:01:33.6]} 32... Ka7 {[%clk 0:00:18.3]} 33. Rb1
{[%clk 0:01:34]} 33... Qxd3 {[%clk 0:00:10.7]} 34. Qe7+ {[%clk 0:01:33.3]} 34...
Ka8 {[%clk 0:00:11.1]} 35. Rg1 {[%clk 0:01:26.9]} 35... Rf1 {[%clk 0:00:10.9]}
36. exd5 {[%clk 0:01:16.7]} 36... Qd1 {[%clk 0:00:03.6]} 37. Qxc5 {[%clk
0:01:15.3]} 37... Rxg1+ {[%clk 0:00:03.8]} 38. Qxg1 {[%clk 0:01:15.2]} 38...
Qxg1+ {[%clk 0:00:04]} 39. Kxg1 {[%clk 0:01:16.1]} 39... a5 {[%clk 0:00:04.1]}
40. h4 {[%clk 0:01:13.4]} 40... Bg4 {[%clk 0:00:03.4]} 41. Kf2 {[%clk
0:01:13.5]} 41... Kb7 {[%clk 0:00:03.7]} 42. Ke3 {[%clk 0:01:14.1]} 42... Bf5
{[%clk 0:00:03.1]} 43. g4 {[%clk 0:01:11.6]} 43... Bxg4 {[%clk 0:00:02.4]} 44.
Ke4 {[%clk 0:01:12.1]} 44... Kb6 {[%clk 0:00:01.4]} 45. Kxe5 {[%clk 0:01:08.3]}
45... Kc5 {[%clk 0:00:01.9]} 46. d6 {[%clk 0:01:06.5]} 1-0

[Event "Early-Titled-Tuesday-Blitz-June-18-2024"]
[Site "Chess.com"]
[Date "2024.06.18"]
[Round "7"]
[White "DmitryMaximov"]
[Black "Mikhail_Golubev"]
[Result "1-0"]
[WhiteElo "2782"]
[BlackElo "2655"]
[TimeControl "180+1"]
[EndTime "9:19:34 PDT"]
[Termination "DmitryMaximov won by resignation"]

1. e4 {[%clk 0:03:00.9]} 1... c5 {[%clk 0:02:59.5]} 2. Nf3 {[%clk 0:03:00.9]}
2... d6 {[%clk 0:02:59.7]} 3. c3 {[%clk 0:03:00.9]} 3... Nf6 {[%clk 0:02:59.5]}
4. Bc4 {[%clk 0:03:01.2]} 4... e6 {[%clk 0:02:57.2]} 5. Bd3 {[%clk 0:03:00.7]}
5... Be7 {[%clk 0:02:31.4]} 6. Bc2 {[%clk 0:03:00.5]} 6... O-O {[%clk
0:02:28.8]} 7. d4 {[%clk 0:03:00.5]} 7... cxd4 {[%clk 0:02:15]} 8. cxd4 {[%clk
0:03:00.7]} 8... Nc6 {[%clk 0:02:15.6]} 9. Nc3 {[%clk 0:02:59.9]} 9... e5 {[%clk
0:02:10.2]} 10. d5 {[%clk 0:02:56.6]} 10... Nb8 {[%clk 0:02:09.2]} 11. O-O
{[%clk 0:02:55.7]} 11... a6 {[%clk 0:02:06.4]} 12. a4 {[%clk 0:02:55.2]} 12...
Bg4 {[%clk 0:02:05.7]} 13. h3 {[%clk 0:02:54.4]} 13... Bxf3 {[%clk 0:02:05.2]}
14. Qxf3 {[%clk 0:02:54]} 14... Nbd7 {[%clk 0:02:05.8]} 15. Be3 {[%clk
0:02:53.8]} 15... Rc8 {[%clk 0:02:01.3]} 16. a5 {[%clk 0:02:49.5]} 16... g6
{[%clk 0:01:59.4]} 17. Rfc1 {[%clk 0:02:38.6]} 17... Nh5 {[%clk 0:01:51.2]} 18.
Ne2 {[%clk 0:02:26.8]} 18... Bg5 {[%clk 0:01:45.6]} 19. Ra3 {[%clk 0:02:20.4]}
19... Bxe3 {[%clk 0:01:35.8]} 20. Qxe3 {[%clk 0:02:20.7]} 20... Ng7 {[%clk
0:01:24.6]} 21. Qd2 {[%clk 0:02:03.6]} 21... f5 {[%clk 0:01:17.9]} 22. exf5
{[%clk 0:02:01]} 22... Nxf5 {[%clk 0:01:18]} 23. Bxf5 {[%clk 0:01:41.2]} 23...
Rxf5 {[%clk 0:01:18.1]} 24. Rxc8 {[%clk 0:01:36.8]} 24... Qxc8 {[%clk 0:01:19]}
25. Rc3 {[%clk 0:01:36.2]} 25... Qf8 {[%clk 0:01:17.4]} 26. Ng3 {[%clk
0:01:36.2]} 26... Rf4 {[%clk 0:01:12]} 27. Rc7 {[%clk 0:01:34.5]} 27... Nf6
{[%clk 0:01:01.9]} 28. Rxb7 {[%clk 0:01:31]} 28... Rd4 {[%clk 0:01:01.3]} 29.
Qc2 {[%clk 0:01:21.8]} 29... Nxd5 {[%clk 0:00:56.8]} 30. Kh2 {[%clk 0:01:10.9]}
30... Rb4 {[%clk 0:00:40.7]} 31. Ra7 {[%clk 0:00:58.7]} 31... Rd4 {[%clk
0:00:23.5]} 32. Rxa6 {[%clk 0:00:43.3]} 32... Nb4 {[%clk 0:00:23.4]} 33. Qb3+
{[%clk 0:00:43.4]} 33... d5 {[%clk 0:00:24]} 34. Rb6 {[%clk 0:00:36.4]} 34...
Nd3 {[%clk 0:00:23.3]} 35. Rb8 {[%clk 0:00:33.8]} 1-0

[Event "Early-Titled-Tuesday-Blitz-June-18-2024"]
[Site "Chess.com"]
[Date "2024.06.18"]
[Round "7"]
[White "aa175"]
[Black "TigrVShlyape"]
[Result "0-1"]
[WhiteElo "2864"]
[BlackElo "3005"]
[TimeControl "180+1"]
[EndTime "9:19:35 PDT"]
[Termination "TigrVShlyape won by resignation"]

1. d4 {[%clk 0:03:00.9]} 1... d5 {[%clk 0:02:59.4]} 2. Bf4 {[%clk 0:02:58.8]}
2... c6 {[%clk 0:02:56.3]} 3. c3 {[%clk 0:02:51.9]} 3... Qb6 {[%clk 0:02:53.9]}
4. Qb3 {[%clk 0:02:44.6]} 4... Bf5 {[%clk 0:02:52.5]} 5. Nd2 {[%clk 0:02:41.4]}
5... e6 {[%clk 0:02:52.1]} 6. e3 {[%clk 0:02:38.4]} 6... Nd7 {[%clk 0:02:51.3]}
7. Ngf3 {[%clk 0:02:33.7]} 7... Ngf6 {[%clk 0:02:50.7]} 8. Nh4 {[%clk
0:02:06.1]} 8... Bg6 {[%clk 0:02:44.9]} 9. Nxg6 {[%clk 0:02:05.1]} 9... hxg6
{[%clk 0:02:44.9]} 10. h3 {[%clk 0:02:04.1]} 10... Be7 {[%clk 0:02:43.2]} 11. c4
{[%clk 0:02:01.2]} 11... a5 {[%clk 0:02:38.9]} 12. c5 {[%clk 0:01:56.1]} 12...
Qa7 {[%clk 0:02:38.4]} 13. Qc2 {[%clk 0:01:47.6]} 13... b6 {[%clk 0:02:16.3]}
14. cxb6 {[%clk 0:01:43.7]} 14... Qxb6 {[%clk 0:02:16.6]} 15. Bd3 {[%clk
0:01:39.5]} 15... c5 {[%clk 0:02:16.4]} 16. Nf3 {[%clk 0:01:26.4]} 16... cxd4
{[%clk 0:02:15.3]} 17. exd4 {[%clk 0:01:24.3]} 17... Bb4+ {[%clk 0:02:13.2]} 18.
Bd2 {[%clk 0:01:19.5]} 18... O-O {[%clk 0:02:12.1]} 19. O-O {[%clk 0:01:10.6]}
19... Rfc8 {[%clk 0:02:11.3]} 20. Qd1 {[%clk 0:01:11.1]} 20... Bxd2 {[%clk
0:02:10.4]} 21. Qxd2 {[%clk 0:01:11.3]} 21... a4 {[%clk 0:02:10.4]} 22. Rfc1
{[%clk 0:01:08.5]} 22... Ne4 {[%clk 0:02:07.8]} 23. Bxe4 {[%clk 0:01:06.1]}
23... dxe4 {[%clk 0:02:07.7]} 24. Ne5 {[%clk 0:01:00.4]} 24... Rd8 {[%clk
0:01:59.9]} 25. Nc6 {[%clk 0:00:55.8]} 25... Re8 {[%clk 0:01:58.1]} 26. Qg5
{[%clk 0:00:53.7]} 26... Nf6 {[%clk 0:01:47.4]} 27. Rc2 {[%clk 0:00:46.3]} 27...
Nd5 {[%clk 0:01:46.6]} 28. Rac1 {[%clk 0:00:43.1]} 28... Nb4 {[%clk 0:01:43.7]}
29. Nxb4 {[%clk 0:00:35]} 29... Qxb4 {[%clk 0:01:43.8]} 30. Qe5 {[%clk
0:00:34.6]} 30... Red8 {[%clk 0:01:40.7]} 31. Qxe4 {[%clk 0:00:24.9]} 31... Qxd4
{[%clk 0:01:40.3]} 32. Qf3 {[%clk 0:00:21.6]} 32... Qf6 {[%clk 0:01:36.4]} 33.
Qe4 {[%clk 0:00:19.5]} 33... Rdb8 {[%clk 0:01:35.1]} 34. a3 {[%clk 0:00:15.8]}
34... Qf5 {[%clk 0:01:19.6]} 35. Qd4 {[%clk 0:00:08.6]} 35... Qf6 {[%clk
0:01:14.8]} 36. Qe4 {[%clk 0:00:08.7]} 36... Ra7 {[%clk 0:01:08.6]} 37. Rc8+
{[%clk 0:00:08.2]} 37... Rxc8 {[%clk 0:01:08.5]} 38. Rxc8+ {[%clk 0:00:09.1]}
38... Kh7 {[%clk 0:01:08.7]} 39. Qb4 {[%clk 0:00:06.3]} 39... g5 {[%clk
0:01:02]} 40. Qb8 {[%clk 0:00:04.8]} 40... Rd7 {[%clk 0:00:56.5]} 41. Rh8+
{[%clk 0:00:04.7]} 41... Kg6 {[%clk 0:00:56.3]} 42. g3 {[%clk 0:00:03]} 42...
Qf3 {[%clk 0:00:54.4]} 43. Rd8 {[%clk 0:00:03]} 43... Qd1+ {[%clk 0:00:53.4]}
0-1